[Event "Titled Tuesday Blitz February 15 Late 2022"]
[White "Kujawski, Adam"]
[Black "Herrera Reyes, Jose Antonio"]
[WhiteFideId "1100920"]
[BlackFideId "2274914"]
[WhiteElo "2053"]
[BlackElo "2361"]
[Result "0-1"]
[Round "03"]
[TimeControl "180+1"]
[Date "2022.02.16"]
[WhiteClock "0:00:02"]
[BlackClock "0:01:27"]

1. e4 {[%clk 0:03:00]}  c5 {[%clk 0:02:58]} 2. Nf3 {[%clk 0:03:00]}  e6 {[%clk 0:02:58]} 3. d4 {[%clk 0:03:00]}  cxd4 {[%clk 0:02:59]} 4. Nxd4 {[%clk 0:03:01]}  a6 {[%clk 0:02:59]} 5. c4 {[%clk 0:03:00]}  Qc7 {[%clk 0:02:58]} 6. Nc3 {[%clk 0:03:00]}  b6 {[%clk 0:02:59]} 7. Bd3 {[%clk 0:02:59]}  Bb7 {[%clk 0:03:00]} 8. O-O {[%clk 0:02:59]}  d6 {[%clk 0:03:00]} 9. b3 {[%clk 0:02:59]}  Nf6 {[%clk 0:03:00]} 10. Bb2 {[%clk 0:02:58]}  Nbd7 {[%clk 0:03:00]} 11. Qe2 {[%clk 0:02:58]}  Be7 {[%clk 0:03:01]} 12. Bc2 {[%clk 0:02:57]}  Rc8 {[%clk 0:03:00]} 13. Rad1 {[%clk 0:02:54]}  Qb8 {[%clk 0:03:00]} 14. Bb1 {[%clk 0:02:52]}  h5 {[%clk 0:03:00]} 15. h3 {[%clk 0:02:40]}  g5 {[%clk 0:02:59]} 16. Rfe1 {[%clk 0:02:18]}  g4 {[%clk 0:02:58]} 17. h4 {[%clk 0:02:17]}  g3 {[%clk 0:02:58]} 18. f3 {[%clk 0:02:06]}  Ne5 {[%clk 0:02:58]} 19. Nd5 {[%clk 0:01:51]}  exd5 {[%clk 0:02:52]} 20. exd5 {[%clk 0:01:51]}  b5 {[%clk 0:02:36]} 21. f4 {[%clk 0:01:43]}  Nfg4 {[%clk 0:02:36]} 22. fxe5 {[%clk 0:01:19]}  dxe5 {[%clk 0:02:37]} 23. Bf5 {[%clk 0:00:57]}  f6 {[%clk 0:02:35]} 24. Bxg4 {[%clk 0:00:48]}  hxg4 {[%clk 0:02:34]} 25. Qxg4 {[%clk 0:00:48]}  bxc4 {[%clk 0:02:15]} 26. Nf5 {[%clk 0:00:36]}  Qa7+ {[%clk 0:02:09]} 27. Kh1 {[%clk 0:00:35]}  Qf2 {[%clk 0:02:02]} 28. Rf1 {[%clk 0:00:18]}  Qxb2 {[%clk 0:01:59]} 29. Qg7 {[%clk 0:00:17]}  Rxh4+ {[%clk 0:01:49]} 30. Nxh4 {[%clk 0:00:09]}  Qe2 {[%clk 0:01:40]} 31. d6 {[%clk 0:00:08]}  Bxd6 {[%clk 0:01:36]} 32. Qg8+ {[%clk 0:00:04]}  Kd7 {[%clk 0:01:26]} 33. Qf7+ {[%clk 0:00:04]}  Kc6 {[%clk 0:01:26]} 34. Rxd6+ {[%clk 0:00:03]}  Kxd6 {[%clk 0:01:26]} 35. Rxf6+ {[%clk 0:00:02]}  Kc5 {[%clk 0:01:27]} 36. Qe7+ {[%clk 0:00:02]}  Kd4 {[%clk 0:01:27]} 37. Qd6+ {[%clk 0:00:02]}  Kc3 {[%clk 0:01:27]} 0-1


[Site "https://www.chess.com"]

[Event "Titled Tuesday Blitz February 15 Late 2022"]
[White "Kushko, Dmitriy"]
[Black "Rorrer, Grayson"]
[WhiteFideId "14162261"]
[BlackFideId "30944996"]
[WhiteElo "2225"]
[BlackElo "2122"]
[Result "1-0"]
[Round "03"]
[TimeControl "180+1"]
[Date "2022.02.16"]
[WhiteClock "0:01:26"]
[BlackClock "0:01:37"]

1. Nf3 {[%clk 0:02:57]}  Nf6 {[%clk 0:02:59]} 2. g3 {[%clk 0:02:57]}  d5 {[%clk 0:02:59]} 3. Bg2 {[%clk 0:02:57]}  c6 {[%clk 0:02:59]} 4. O-O {[%clk 0:02:57]}  Bg4 {[%clk 0:02:59]} 5. h3 {[%clk 0:02:56]}  Bh5 {[%clk 0:02:58]} 6. d3 {[%clk 0:02:52]}  e6 {[%clk 0:02:57]} 7. Qe1 {[%clk 0:02:51]}  Be7 {[%clk 0:02:57]} 8. e4 {[%clk 0:02:50]}  O-O {[%clk 0:02:58]} 9. Nc3 {[%clk 0:02:42]}  a5 {[%clk 0:02:56]} 10. Bf4 {[%clk 0:02:35]}  a4 {[%clk 0:02:54]} 11. a3 {[%clk 0:02:34]}  h6 {[%clk 0:02:52]} 12. e5 {[%clk 0:02:29]}  Nfd7 {[%clk 0:02:52]} 13. g4 {[%clk 0:02:27]}  Bg6 {[%clk 0:02:52]} 14. Bg3 {[%clk 0:02:25]}  b5 {[%clk 0:02:15]} 15. Ne2 {[%clk 0:02:24]}  c5 {[%clk 0:02:13]} 16. Nf4 {[%clk 0:02:22]}  Bh7 {[%clk 0:02:11]} 17. c4 {[%clk 0:02:10]}  g5 {[%clk 0:01:58]} 18. Nh5 {[%clk 0:01:39]}  Bxd3 {[%clk 0:01:56]} 19. cxd5 {[%clk 0:01:40]}  exd5 {[%clk 0:01:57]} 20. e6 {[%clk 0:01:39]}  Nf6 {[%clk 0:01:43]} 21. exf7+ {[%clk 0:01:29]}  Kh7 {[%clk 0:01:42]} 22. Ne5 {[%clk 0:01:29]}  Bxf1 {[%clk 0:01:37]} 23. Qb1+ {[%clk 0:01:26]} 1-0


[Site "https://www.chess.com"]

[Event "Titled Tuesday Blitz February 15 Late 2022"]
[White "Lavrik, Dmitry"]
[Black "Mogranzini, Roberto"]
[WhiteFideId "24113190"]
[BlackFideId "810894"]
[WhiteElo "2369"]
[BlackElo "2469"]
[Result "1-0"]
[Round "03"]
[TimeControl "180+1"]
[Date "2022.02.16"]
[WhiteClock "0:00:08"]
[BlackClock "0:00:03"]

1. e4 {[%clk 0:03:00]}  c5 {[%clk 0:02:57]} 2. Nf3 {[%clk 0:03:00]}  e6 {[%clk 0:02:57]} 3. c3 {[%clk 0:03:00]}  Nf6 {[%clk 0:02:57]} 4. e5 {[%clk 0:02:59]}  Nd5 {[%clk 0:02:57]} 5. Bc4 {[%clk 0:03:00]}  d6 {[%clk 0:02:55]} 6. d4 {[%clk 0:02:59]}  cxd4 {[%clk 0:02:54]} 7. cxd4 {[%clk 0:03:00]}  Nb6 {[%clk 0:02:47]} 8. Bd3 {[%clk 0:02:54]}  dxe5 {[%clk 0:02:48]} 9. dxe5 {[%clk 0:02:50]}  Na6 {[%clk 0:02:47]} 10. Qe2 {[%clk 0:02:38]}  Nc5 {[%clk 0:02:47]} 11. Bc2 {[%clk 0:02:37]}  Nd5 {[%clk 0:02:45]} 12. a3 {[%clk 0:02:34]}  a5 {[%clk 0:02:36]} 13. Ng5 {[%clk 0:01:39]}  Be7 {[%clk 0:02:18]} 14. h4 {[%clk 0:01:30]}  Bd7 {[%clk 0:01:47]} 15. Nd2 {[%clk 0:01:22]}  Qc7 {[%clk 0:01:40]} 16. Ndf3 {[%clk 0:01:15]}  h6 {[%clk 0:01:33]} 17. Ne4 {[%clk 0:01:07]}  Nxe4 {[%clk 0:01:32]} 18. Bxe4 {[%clk 0:00:53]}  Nc3 {[%clk 0:01:05]} 19. bxc3 {[%clk 0:00:32]}  Qxc3+ {[%clk 0:01:05]} 20. Qd2 {[%clk 0:00:28]}  Qxa1 {[%clk 0:01:05]} 21. O-O {[%clk 0:00:29]}  Bb5 {[%clk 0:00:50]} 22. Re1 {[%clk 0:00:25]}  O-O {[%clk 0:00:46]} 23. Qf4 {[%clk 0:00:16]}  Rac8 {[%clk 0:00:41]} 24. Bd2 {[%clk 0:00:15]}  Qxa3 {[%clk 0:00:39]} 25. Qg4 {[%clk 0:00:15]}  Kh8 {[%clk 0:00:32]} 26. Qh5 {[%clk 0:00:11]}  f5 {[%clk 0:00:29]} 27. exf6 {[%clk 0:00:12]}  Rxf6 {[%clk 0:00:30]} 28. Ne5 {[%clk 0:00:12]}  Be8 {[%clk 0:00:29]} 29. Qg4 {[%clk 0:00:09]}  Qd6 {[%clk 0:00:21]} 30. Bf4 {[%clk 0:00:08]}  Rxf4 {[%clk 0:00:18]} 31. Qxf4 {[%clk 0:00:09]}  Rc5 {[%clk 0:00:18]} 32. Bb1 {[%clk 0:00:09]}  a4 {[%clk 0:00:13]} 33. Qe4 {[%clk 0:00:09]}  g6 {[%clk 0:00:08]} 34. Nxg6+ {[%clk 0:00:10]}  Kg7 {[%clk 0:00:08]} 35. Nf4 {[%clk 0:00:08]}  Rf5 {[%clk 0:00:07]} 36. Nxe6+ {[%clk 0:00:08]}  Qxe6 {[%clk 0:00:03]} 37. Qxe6 {[%clk 0:00:08]} 1-0


[Site "https://www.chess.com"]

[Event "Titled Tuesday Blitz February 15 Late 2022"]
[White "Lenderman, Aleksandr"]
[Black "Andreikin, Dmitry"]
[WhiteFideId "2021285"]
[BlackFideId "4158814"]
[WhiteElo "2651"]
[BlackElo "2736"]
[Result "0-1"]
[Round "03"]
[TimeControl "180+1"]
[Date "2022.02.15"]
[WhiteClock "0:00:31"]
[BlackClock "0:00:23"]

1. b3 {[%clk 0:03:00]}  e5 {[%clk 0:02:59]} 2. Bb2 {[%clk 0:02:58]}  Nc6 {[%clk 0:02:59]} 3. e3 {[%clk 0:02:57]}  Nf6 {[%clk 0:02:58]} 4. Nf3 {[%clk 0:02:56]}  e4 {[%clk 0:02:56]} 5. Nd4 {[%clk 0:02:56]}  Bc5 {[%clk 0:02:52]} 6. Nf5 {[%clk 0:02:55]}  O-O {[%clk 0:02:45]} 7. c4 {[%clk 0:02:54]}  d5 {[%clk 0:02:37]} 8. cxd5 {[%clk 0:02:52]}  Nb4 {[%clk 0:02:31]} 9. Ng3 {[%clk 0:02:49]}  Nbxd5 {[%clk 0:02:16]} 10. Qc2 {[%clk 0:02:43]}  Qe7 {[%clk 0:02:06]} 11. Nc3 {[%clk 0:02:41]}  Nb4 {[%clk 0:02:01]} 12. Qb1 {[%clk 0:02:37]}  Re8 {[%clk 0:02:00]} 13. a3 {[%clk 0:02:34]}  Nc6 {[%clk 0:01:59]} 14. b4 {[%clk 0:02:34]}  Bd6 {[%clk 0:01:58]} 15. Be2 {[%clk 0:02:34]}  Be5 {[%clk 0:01:27]} 16. Ngxe4 {[%clk 0:02:14]}  Bf5 {[%clk 0:01:27]} 17. Nxf6+ {[%clk 0:01:53]}  Qxf6 {[%clk 0:01:28]} 18. Bd3 {[%clk 0:01:50]}  Bxd3 {[%clk 0:01:19]} 19. Qxd3 {[%clk 0:01:51]}  Rad8 {[%clk 0:01:18]} 20. Qc4 {[%clk 0:01:48]}  Bxh2 {[%clk 0:00:45]} 21. Rxh2 {[%clk 0:01:11]}  Qd6 {[%clk 0:00:41]} 22. Qh4 {[%clk 0:01:02]}  Qxd2+ {[%clk 0:00:41]} 23. Kf1 {[%clk 0:01:02]}  Qxb2 {[%clk 0:00:36]} 24. Qxh7+ {[%clk 0:01:02]}  Kf8 {[%clk 0:00:36]} 25. Qh8+ {[%clk 0:00:54]}  Ke7 {[%clk 0:00:36]} 26. Qxg7 {[%clk 0:00:54]}  Qxa1+ {[%clk 0:00:35]} 27. Ke2 {[%clk 0:00:54]}  Nd4+ {[%clk 0:00:29]} 28. exd4 {[%clk 0:00:52]}  Qxc3 {[%clk 0:00:26]} 29. Rh3 {[%clk 0:00:32]}  Kd7+ {[%clk 0:00:25]} 30. Re3 {[%clk 0:00:32]}  Rxe3+ {[%clk 0:00:24]} 31. fxe3 {[%clk 0:00:33]}  Qc2+ {[%clk 0:00:24]} 32. Kf3 {[%clk 0:00:32]}  Qf5+ {[%clk 0:00:23]} 33. Ke2 {[%clk 0:00:31]}  Qg6 {[%clk 0:00:23]} 0-1


[Site "https://www.chess.com"]

[Event "Titled Tuesday Blitz February 15 Late 2022"]
[White "Li, Hui"]
[Black "Desideri, Ricardo Maruchi"]
[WhiteFideId "15400310"]
[BlackFideId "2110440"]
[WhiteElo "1954"]
[BlackElo "1945"]
[Result "1-0"]
[Round "03"]
[TimeControl "180+1"]
[Date "2022.02.16"]
[WhiteClock "0:00:05"]
[BlackClock "0:00:02"]

1. e4 {[%clk 0:03:00]}  c5 {[%clk 0:02:49]} 2. Nf3 {[%clk 0:02:58]}  d6 {[%clk 0:02:49]} 3. d4 {[%clk 0:02:58]}  cxd4 {[%clk 0:02:50]} 4. Nxd4 {[%clk 0:02:59]}  Nf6 {[%clk 0:02:49]} 5. Nc3 {[%clk 0:03:00]}  a6 {[%clk 0:02:50]} 6. Be2 {[%clk 0:03:00]}  e6 {[%clk 0:02:50]} 7. O-O {[%clk 0:02:59]}  b5 {[%clk 0:02:51]} 8. Bf3 {[%clk 0:02:42]}  Ra7 {[%clk 0:02:51]} 9. Be3 {[%clk 0:01:47]}  Rc7 {[%clk 0:02:48]} 10. Qe2 {[%clk 0:01:37]}  Nbd7 {[%clk 0:02:45]} 11. a4 {[%clk 0:01:29]}  b4 {[%clk 0:02:41]} 12. Na2 {[%clk 0:01:27]}  Ne5 {[%clk 0:01:53]} 13. Nxb4 {[%clk 0:00:44]}  Nxf3+ {[%clk 0:01:51]} 14. Nxf3 {[%clk 0:00:28]}  a5 {[%clk 0:01:49]} 15. Nd3 {[%clk 0:00:20]}  Rc6 {[%clk 0:01:30]} 16. e5 {[%clk 0:00:17]}  Nd5 {[%clk 0:01:25]} 17. Rad1 {[%clk 0:00:11]}  Ba6 {[%clk 0:01:21]} 18. Rfe1 {[%clk 0:00:07]}  Be7 {[%clk 0:01:20]} 19. Nd4 {[%clk 0:00:07]}  Rc7 {[%clk 0:01:10]} 20. Qg4 {[%clk 0:00:07]}  Nxe3 {[%clk 0:00:31]} 21. Rxe3 {[%clk 0:00:06]}  O-O {[%clk 0:00:26]} 22. c3 {[%clk 0:00:04]}  Bxd3 {[%clk 0:00:15]} 23. Rexd3 {[%clk 0:00:04]}  Qb8 {[%clk 0:00:10]} 24. h3 {[%clk 0:00:04]}  dxe5 {[%clk 0:00:09]} 25. Nf3 {[%clk 0:00:03]}  Bf6 {[%clk 0:00:08]} 26. Qe4 {[%clk 0:00:03]}  Rcc8 {[%clk 0:00:07]} 27. Nxe5 {[%clk 0:00:04]}  Qxe5 {[%clk 0:00:04]} 28. Qxe5 {[%clk 0:00:04]}  Bxe5 {[%clk 0:00:04]} 29. Re3 {[%clk 0:00:04]}  Bf6 {[%clk 0:00:04]} 30. g3 {[%clk 0:00:05]}  Rb8 {[%clk 0:00:04]} 31. Rd2 {[%clk 0:00:04]}  Rb3 {[%clk 0:00:04]} 32. Re4 {[%clk 0:00:04]}  Rfb8 {[%clk 0:00:04]} 33. g4 {[%clk 0:00:04]}  g6 {[%clk 0:00:04]} 34. g5 {[%clk 0:00:04]}  Bg7 {[%clk 0:00:02]} 35. Rc4 {[%clk 0:00:04]}  Rxb2 {[%clk 0:00:02]} 36. Rd7 {[%clk 0:00:05]} 1-0


[Site "https://www.chess.com"]

[Event "Titled Tuesday Blitz February 15 Late 2022"]
[White "Lin, Dachey"]
[Black "Le Goff, Ronan"]
[WhiteFideId "2029650"]
[BlackFideId "612073"]
[WhiteElo "2719"]
[BlackElo "2276"]
[Result "1-0"]
[Round "03"]
[TimeControl "180+1"]
[Date "2022.02.16"]
[WhiteClock "0:00:50"]
[BlackClock "0:00:02"]

1. g4 {[%clk 0:03:00]}  d5 {[%clk 0:02:53]} 2. Bg2 {[%clk 0:03:01]}  Bxg4 {[%clk 0:02:53]} 3. c4 {[%clk 0:03:01]}  c6 {[%clk 0:02:28]} 4. Qb3 {[%clk 0:02:57]}  Nf6 {[%clk 0:02:14]} 5. Qxb7 {[%clk 0:02:54]}  Nbd7 {[%clk 0:02:08]} 6. d4 {[%clk 0:02:54]}  e6 {[%clk 0:01:52]} 7. c5 {[%clk 0:02:54]}  Be7 {[%clk 0:01:39]} 8. Qxc6 {[%clk 0:02:53]}  O-O {[%clk 0:01:31]} 9. Nf3 {[%clk 0:02:49]}  Bxf3 {[%clk 0:01:24]} 10. Bxf3 {[%clk 0:02:48]}  e5 {[%clk 0:01:25]} 11. e3 {[%clk 0:02:48]}  exd4 {[%clk 0:01:25]} 12. exd4 {[%clk 0:02:48]}  Re8 {[%clk 0:01:20]} 13. Be3 {[%clk 0:02:49]}  Rc8 {[%clk 0:01:17]} 14. Qa4 {[%clk 0:02:46]}  Bxc5 {[%clk 0:01:16]} 15. dxc5 {[%clk 0:02:46]}  Nxc5 {[%clk 0:01:17]} 16. Qd4 {[%clk 0:02:30]}  Ne6 {[%clk 0:01:11]} 17. Qxa7 {[%clk 0:02:30]}  d4 {[%clk 0:01:11]} 18. O-O {[%clk 0:02:30]}  dxe3 {[%clk 0:00:58]} 19. Rd1 {[%clk 0:02:13]}  e2 {[%clk 0:00:30]} 20. Bxe2 {[%clk 0:02:07]}  Nd5 {[%clk 0:00:12]} 21. Qa3 {[%clk 0:01:48]}  Nef4 {[%clk 0:00:11]} 22. Bf1 {[%clk 0:01:48]}  Rc6 {[%clk 0:00:09]} 23. Qf3 {[%clk 0:01:39]}  Rg6+ {[%clk 0:00:08]} 24. Kh1 {[%clk 0:01:40]}  Qg5 {[%clk 0:00:08]} 25. Bc4 {[%clk 0:01:31]}  Nb6 {[%clk 0:00:05]} 26. Nd2 {[%clk 0:01:04]}  Nxc4 {[%clk 0:00:04]} 27. Nxc4 {[%clk 0:01:05]}  h5 {[%clk 0:00:04]} 28. Ne3 {[%clk 0:01:03]}  h4 {[%clk 0:00:04]} 29. Rg1 {[%clk 0:01:03]}  Qf6 {[%clk 0:00:03]} 30. Rxg6 {[%clk 0:01:02]}  fxg6 {[%clk 0:00:04]} 31. Rg1 {[%clk 0:00:55]}  g5 {[%clk 0:00:04]} 32. Nd5 {[%clk 0:00:50]}  Nxd5 {[%clk 0:00:01]} 33. Qxd5+ {[%clk 0:00:51]}  Kh8 {[%clk 0:00:01]} 34. Qxg5 {[%clk 0:00:51]}  Qf3+ {[%clk 0:00:01]} 35. Qg2 {[%clk 0:00:51]}  Qxg2+ {[%clk 0:00:01]} 36. Kxg2 {[%clk 0:00:51]}  Re2 {[%clk 0:00:01]} 37. Rb1 {[%clk 0:00:51]}  g5 {[%clk 0:00:01]} 38. h3 {[%clk 0:00:50]}  Kg7 {[%clk 0:00:01]} 39. a4 {[%clk 0:00:51]}  Rc2 {[%clk 0:00:02]} 40. a5 {[%clk 0:00:51]}  g4 {[%clk 0:00:01]} 41. hxg4 {[%clk 0:00:51]}  Kg6 {[%clk 0:00:02]} 42. a6 {[%clk 0:00:50]}  Kg5 {[%clk 0:00:02]} 43. a7 {[%clk 0:00:50]} 1-0


[Site "https://www.chess.com"]

[Event "Titled Tuesday Blitz February 15 Late 2022"]
[White "Lopez Gracia, Fernando"]
[Black "Tanenbaum, Zachary"]
[WhiteFideId "2207184"]
[BlackFideId "2060850"]
[WhiteElo "2436"]
[BlackElo "2168"]
[Result "0-1"]
[Round "03"]
[TimeControl "180+1"]
[Date "2022.02.16"]
[WhiteClock "0:01:38"]
[BlackClock "0:01:33"]

1. c4 {[%clk 0:03:00]}  e5 {[%clk 0:02:59]} 2. Nc3 {[%clk 0:03:00]}  Nc6 {[%clk 0:03:00]} 3. Nf3 {[%clk 0:03:00]}  Nf6 {[%clk 0:03:00]} 4. e4 {[%clk 0:03:00]}  Bb4 {[%clk 0:03:00]} 5. d3 {[%clk 0:03:00]}  d6 {[%clk 0:03:00]} 6. Be2 {[%clk 0:03:00]}  Bg4 {[%clk 0:02:58]} 7. O-O {[%clk 0:03:00]}  Bxf3 {[%clk 0:02:56]} 8. Bxf3 {[%clk 0:03:00]}  O-O {[%clk 0:02:54]} 9. Be2 {[%clk 0:03:00]}  Nd4 {[%clk 0:02:53]} 10. f4 {[%clk 0:02:58]}  Bc5 {[%clk 0:02:50]} 11. Kh1 {[%clk 0:02:58]}  c6 {[%clk 0:02:49]} 12. Na4 {[%clk 0:02:51]}  Bb4 {[%clk 0:02:45]} 13. a3 {[%clk 0:02:48]}  Ba5 {[%clk 0:02:44]} 14. b4 {[%clk 0:02:46]}  Bc7 {[%clk 0:02:43]} 15. fxe5 {[%clk 0:02:43]}  Nd7 {[%clk 0:01:51]} 16. exd6 {[%clk 0:02:36]}  Bxd6 {[%clk 0:01:52]} 17. Be3 {[%clk 0:02:33]}  Be5 {[%clk 0:01:50]} 18. Rc1 {[%clk 0:02:28]}  Qh4 {[%clk 0:01:47]} 19. Bg1 {[%clk 0:02:20]}  f5 {[%clk 0:01:46]} 20. Qe1 {[%clk 0:02:11]}  Bg3 {[%clk 0:01:39]} 21. Qxg3 {[%clk 0:02:06]}  Qxg3 {[%clk 0:01:39]} 22. hxg3 {[%clk 0:02:07]}  Nxe2 {[%clk 0:01:40]} 23. exf5 {[%clk 0:01:39]}  Nxc1 {[%clk 0:01:38]} 24. Rxc1 {[%clk 0:01:39]}  Rxf5 {[%clk 0:01:37]} 25. Re1 {[%clk 0:01:39]}  Rh5+ {[%clk 0:01:32]} 26. Bh2 {[%clk 0:01:38]}  Nf6 {[%clk 0:01:33]} 0-1


[Site "https://www.chess.com"]

[Event "Titled Tuesday Blitz February 15 Late 2022"]
[White "Medeiros Jr, Francisco De Assis"]
[Black "Papayan, Oleg"]
[WhiteFideId "2114267"]
[BlackFideId "4193911"]
[WhiteElo "1998"]
[BlackElo "2038"]
[Result "1-0"]
[Round "03"]
[TimeControl "180+1"]
[Date "2022.02.16"]
[WhiteClock "0:00:50"]
[BlackClock "0:00:02"]

1. d4 {[%clk 0:02:56]}  Nf6 {[%clk 0:03:00]} 2. Nf3 {[%clk 0:02:57]}  d5 {[%clk 0:03:00]} 3. Bg5 {[%clk 0:02:57]}  c5 {[%clk 0:02:58]} 4. c3 {[%clk 0:02:57]}  Nc6 {[%clk 0:02:58]} 5. e3 {[%clk 0:02:53]}  Qb6 {[%clk 0:02:55]} 6. Qb3 {[%clk 0:02:50]}  c4 {[%clk 0:02:54]} 7. Qc2 {[%clk 0:02:47]}  Bf5 {[%clk 0:02:53]} 8. Qc1 {[%clk 0:02:47]}  Ne4 {[%clk 0:02:52]} 9. Bf4 {[%clk 0:02:48]}  f6 {[%clk 0:02:48]} 10. h3 {[%clk 0:02:44]}  g5 {[%clk 0:02:37]} 11. Bh2 {[%clk 0:02:44]}  h5 {[%clk 0:02:38]} 12. Nbd2 {[%clk 0:02:41]}  e6 {[%clk 0:02:12]} 13. g4 {[%clk 0:02:40]}  hxg4 {[%clk 0:02:05]} 14. hxg4 {[%clk 0:02:41]}  Nxd2 {[%clk 0:01:47]} 15. Nxd2 {[%clk 0:02:28]}  Bxg4 {[%clk 0:01:45]} 16. Bc7 {[%clk 0:02:25]}  Rxh1 {[%clk 0:01:19]} 17. Bxb6 {[%clk 0:02:24]}  axb6 {[%clk 0:01:20]} 18. Qc2 {[%clk 0:02:10]}  Bf5 {[%clk 0:01:00]} 19. e4 {[%clk 0:02:04]}  dxe4 {[%clk 0:01:00]} 20. Nxe4 {[%clk 0:02:05]}  O-O-O {[%clk 0:00:58]} 21. O-O-O {[%clk 0:02:01]}  b5 {[%clk 0:00:38]} 22. d5 {[%clk 0:01:40]}  Rxf1 {[%clk 0:00:30]} 23. Rxf1 {[%clk 0:01:36]}  Rxd5 {[%clk 0:00:30]} 24. f3 {[%clk 0:01:27]}  Ne5 {[%clk 0:00:27]} 25. Qh2 {[%clk 0:01:22]}  Nd3+ {[%clk 0:00:22]} 26. Kc2 {[%clk 0:01:14]}  Nc5 {[%clk 0:00:21]} 27. Qh8 {[%clk 0:01:09]}  Nxe4 {[%clk 0:00:17]} 28. fxe4 {[%clk 0:01:09]}  Bxe4+ {[%clk 0:00:17]} 29. Kc1 {[%clk 0:01:10]}  Rd8 {[%clk 0:00:13]} 30. Rxf6 {[%clk 0:01:09]}  Be7 {[%clk 0:00:11]} 31. Qg7 {[%clk 0:01:01]}  Bxf6 {[%clk 0:00:10]} 32. Qxf6 {[%clk 0:01:02]}  Bf5 {[%clk 0:00:08]} 33. Qxg5 {[%clk 0:01:03]}  Rd5 {[%clk 0:00:06]} 34. Qe7 {[%clk 0:01:01]}  Kb8 {[%clk 0:00:05]} 35. b3 {[%clk 0:00:59]}  cxb3 {[%clk 0:00:04]} 36. axb3 {[%clk 0:01:00]}  Kc8 {[%clk 0:00:04]} 37. Kb2 {[%clk 0:00:58]}  Kb8 {[%clk 0:00:03]} 38. Ka3 {[%clk 0:00:58]}  Ka7 {[%clk 0:00:03]} 39. Kb4 {[%clk 0:00:57]}  Kb6 {[%clk 0:00:03]} 40. c4 {[%clk 0:00:51]}  bxc4 {[%clk 0:00:04]} 41. bxc4 {[%clk 0:00:51]}  Rd3 {[%clk 0:00:02]} 42. Qc5+ {[%clk 0:00:50]}  Ka6 {[%clk 0:00:02]} 43. Qa5# {[%clk 0:00:50]} 1-0


[Site "https://www.chess.com"]

[Event "Titled Tuesday Blitz February 15 Late 2022"]
[White "Mikhailovsky, Vladimir"]
[Black "Tari, Aryan"]
[WhiteFideId "34105414"]
[BlackFideId "1510045"]
[WhiteElo "2371"]
[BlackElo "2567"]
[Result "1-0"]
[Round "03"]
[TimeControl "180+1"]
[Date "2022.02.15"]
[WhiteClock "0:00:45"]
[BlackClock "0:00:02"]

1. d4 {[%clk 0:03:00]}  d5 {[%clk 0:02:56]} 2. c4 {[%clk 0:03:00]}  e6 {[%clk 0:02:57]} 3. Nc3 {[%clk 0:03:00]}  c5 {[%clk 0:02:57]} 4. cxd5 {[%clk 0:02:58]}  cxd4 {[%clk 0:02:57]} 5. Qxd4 {[%clk 0:02:57]}  Nc6 {[%clk 0:02:58]} 6. Qa4 {[%clk 0:02:56]}  exd5 {[%clk 0:02:57]} 7. Nf3 {[%clk 0:02:56]}  Nf6 {[%clk 0:02:55]} 8. e3 {[%clk 0:02:52]}  Bb4 {[%clk 0:02:54]} 9. Bd2 {[%clk 0:02:51]}  O-O {[%clk 0:02:51]} 10. Bb5 {[%clk 0:02:50]}  Bxc3 {[%clk 0:02:10]} 11. Bxc3 {[%clk 0:02:50]}  Ne4 {[%clk 0:02:10]} 12. Bxc6 {[%clk 0:02:42]}  bxc6 {[%clk 0:02:08]} 13. Qxc6 {[%clk 0:02:41]}  Bg4 {[%clk 0:02:08]} 14. Ne5 {[%clk 0:02:26]}  Rc8 {[%clk 0:01:58]} 15. Qa4 {[%clk 0:02:20]}  Be6 {[%clk 0:01:13]} 16. Bd4 {[%clk 0:02:12]}  f6 {[%clk 0:01:01]} 17. Nd3 {[%clk 0:02:12]}  Rc4 {[%clk 0:00:56]} 18. Qxa7 {[%clk 0:01:56]}  Bf5 {[%clk 0:00:29]} 19. O-O {[%clk 0:01:43]}  Qd6 {[%clk 0:00:15]} 20. f3 {[%clk 0:01:27]}  Nd2 {[%clk 0:00:14]} 21. Bc5 {[%clk 0:01:24]}  Qd7 {[%clk 0:00:02]} 22. Qxd7 {[%clk 0:01:23]}  Bxd7 {[%clk 0:00:03]} 23. Bxf8 {[%clk 0:01:23]}  Nxf1 {[%clk 0:00:03]} 24. Kxf1 {[%clk 0:00:59]}  Kxf8 {[%clk 0:00:04]} 25. Rc1 {[%clk 0:00:55]}  Bb5 {[%clk 0:00:04]} 26. Kf2 {[%clk 0:00:53]}  Ra4 {[%clk 0:00:03]} 27. Rc8+ {[%clk 0:00:50]}  Ke7 {[%clk 0:00:03]} 28. Nf4 {[%clk 0:00:48]}  Rxa2 {[%clk 0:00:03]} 29. Rc7+ {[%clk 0:00:44]}  Kd6 {[%clk 0:00:01]} 30. Rxg7 {[%clk 0:00:44]}  Rxb2+ {[%clk 0:00:02]} 31. Kg3 {[%clk 0:00:45]}  h6 {[%clk 0:00:01]} 32. Rg6 {[%clk 0:00:45]}  Ke5 {[%clk 0:00:01]} 33. Rxh6 {[%clk 0:00:45]}  Rb3 {[%clk 0:00:01]} 34. Rh5+ {[%clk 0:00:44]}  f5 {[%clk 0:00:02]} 35. Rh6 {[%clk 0:00:45]} 1-0


[Site "https://www.chess.com"]

[Event "Titled Tuesday Blitz February 15 Late 2022"]
[White "Mladenovic, Stefan"]
[Black "Golubenko, Valentina"]
[WhiteFideId "942227"]
[BlackFideId "4501993"]
[WhiteElo "2355"]
[BlackElo "2164"]
[Result "1-0"]
[Round "03"]
[TimeControl "180+1"]
[Date "2022.02.16"]
[WhiteClock "0:00:23"]
[BlackClock "0:00:01"]

1. d4 {[%clk 0:03:00]}  g6 {[%clk 0:02:59]} 2. Nf3 {[%clk 0:03:00]}  Bg7 {[%clk 0:02:59]} 3. Bf4 {[%clk 0:02:58]}  c5 {[%clk 0:02:59]} 4. e3 {[%clk 0:02:58]}  cxd4 {[%clk 0:02:59]} 5. exd4 {[%clk 0:02:58]}  d6 {[%clk 0:02:59]} 6. h3 {[%clk 0:02:56]}  Nf6 {[%clk 0:02:59]} 7. c3 {[%clk 0:02:56]}  Nc6 {[%clk 0:02:58]} 8. Be2 {[%clk 0:02:56]}  O-O {[%clk 0:02:58]} 9. O-O {[%clk 0:02:56]}  Re8 {[%clk 0:02:59]} 10. Bh2 {[%clk 0:02:51]}  d5 {[%clk 0:02:56]} 11. Nbd2 {[%clk 0:02:29]}  a6 {[%clk 0:02:53]} 12. Re1 {[%clk 0:02:29]}  b5 {[%clk 0:02:52]} 13. Qb3 {[%clk 0:02:26]}  Bf5 {[%clk 0:02:43]} 14. a4 {[%clk 0:02:25]}  bxa4 {[%clk 0:02:21]} 15. Qxa4 {[%clk 0:02:24]}  Bd7 {[%clk 0:02:16]} 16. Qa2 {[%clk 0:02:15]}  a5 {[%clk 0:02:13]} 17. Nb3 {[%clk 0:02:14]}  Ne4 {[%clk 0:02:09]} 18. Bd3 {[%clk 0:02:07]}  f5 {[%clk 0:02:08]} 19. Nc5 {[%clk 0:01:59]}  Nxc5 {[%clk 0:02:01]} 20. Qxd5+ {[%clk 0:01:55]}  e6 {[%clk 0:01:03]} 21. Qxc5 {[%clk 0:01:51]}  Rc8 {[%clk 0:01:03]} 22. Ba6 {[%clk 0:01:40]}  Bf8 {[%clk 0:00:47]} 23. Bd6 {[%clk 0:00:31]}  Bxd6 {[%clk 0:00:47]} 24. Qxd6 {[%clk 0:00:31]}  Rb8 {[%clk 0:00:45]} 25. d5 {[%clk 0:00:27]}  exd5 {[%clk 0:00:36]} 26. Qxd5+ {[%clk 0:00:28]}  Kg7 {[%clk 0:00:36]} 27. Rad1 {[%clk 0:00:26]}  Re7 {[%clk 0:00:03]} 28. Rxe7+ {[%clk 0:00:25]}  Qxe7 {[%clk 0:00:02]} 29. Qxd7 {[%clk 0:00:25]}  Qxd7 {[%clk 0:00:02]} 30. Rxd7+ {[%clk 0:00:26]}  Kf8 {[%clk 0:00:01]} 31. Rxh7 {[%clk 0:00:24]}  Rxb2 {[%clk 0:00:01]} 32. Bb7 {[%clk 0:00:23]} 1-0


[Site "https://www.chess.com"]